[Event "*** Titled Tuesday Blitz"]
[Site "Chess.com"]
[Date "2019.02.05"]
[Round "1"]
[White "FrankieJay"]
[Black "maciek_92"]
[Result "0-1"]
[WhiteElo "2374"]
[BlackElo "2759"]
[TimeControl "180+2"]
[EndTime "13:10:47 PST"]
[Termination "maciek_92 won by resignation"]

1. e4 {[%clk 0:03:01.6]} 1... e5 {[%clk 0:02:55.9]} 2. Nf3 {[%clk 0:03:02.4]}
2... Nc6 {[%clk 0:02:56.7]} 3. Bb5 {[%clk 0:03:03.7]} 3... a6 {[%clk 0:02:56.9]}
4. Ba4 {[%clk 0:03:04.7]} 4... Nf6 {[%clk 0:02:58.3]} 5. O-O {[%clk 0:03:06]}
5... Be7 {[%clk 0:02:58.7]} 6. Re1 {[%clk 0:03:07.1]} 6... b5 {[%clk 0:02:58.9]}
7. Bb3 {[%clk 0:03:08.6]} 7... d6 {[%clk 0:03:00.4]} 8. c3 {[%clk 0:03:09.8]}
8... O-O {[%clk 0:03:01.5]} 9. h3 {[%clk 0:03:11.3]} 9... Na5 {[%clk 0:03:02.8]}
10. Bc2 {[%clk 0:03:12.1]} 10... c5 {[%clk 0:03:04.4]} 11. d4 {[%clk 0:03:13.6]}
11... Nd7 {[%clk 0:03:05.8]} 12. Nbd2 {[%clk 0:03:13.4]} 12... exd4 {[%clk
0:03:05.6]} 13. cxd4 {[%clk 0:03:14.7]} 13... Nc6 {[%clk 0:03:07.2]} 14. d5
{[%clk 0:03:15.2]} 14... Nce5 {[%clk 0:03:08.8]} 15. Nxe5 {[%clk 0:03:12]} 15...
Nxe5 {[%clk 0:03:10.7]} 16. f4 {[%clk 0:03:13.5]} 16... Ng6 {[%clk 0:03:11.8]}
17. Nf3 {[%clk 0:03:14.3]} 17... Bh4 {[%clk 0:03:12.6]} 18. Rf1 {[%clk 0:03:15]}
18... Bg3 {[%clk 0:03:12.6]} 19. f5 {[%clk 0:03:16]} 19... Ne5 {[%clk
0:03:13.9]} 20. Ng5 {[%clk 0:03:12.8]} 20... h6 {[%clk 0:03:00.5]} 21. f6 {[%clk
0:03:13.4]} 21... g6 {[%clk 0:02:31.3]} 22. Nf3 {[%clk 0:02:32]} 22... Qxf6
{[%clk 0:02:30.2]} 23. Bxh6 {[%clk 0:02:29.4]} 23... Re8 {[%clk 0:02:23.6]} 24.
Nxe5 {[%clk 0:01:57.3]} 24... Qxe5 {[%clk 0:02:25.5]} 25. Qf3 {[%clk 0:01:58.7]}
25... Ra7 {[%clk 0:02:25.1]} 26. b3 {[%clk 0:01:51.4]} 26... Bh4 {[%clk
0:01:50.2]} 27. Bf4 {[%clk 0:01:46.4]} 27... Qe7 {[%clk 0:01:51.1]} 28. Rad1
{[%clk 0:01:37]} 28... Bg5 {[%clk 0:01:46.4]} 29. Bg3 {[%clk 0:01:27.7]} 29...
Kg7 {[%clk 0:01:37]} 30. Rfe1 {[%clk 0:01:19.6]} 30... Bf6 {[%clk 0:01:13.9]}
31. Kh1 {[%clk 0:01:15]} 31... Be5 {[%clk 0:01:14.2]} 32. Bxe5+ {[%clk
0:01:06.3]} 32... Qxe5 {[%clk 0:01:16.1]} 33. Rf1 {[%clk 0:01:07.9]} 33... Rh8
{[%clk 0:01:16.6]} 34. Rd2 {[%clk 0:01:03.1]} 34... Re7 {[%clk 0:01:10]} 35.
Rdf2 {[%clk 0:01:03.7]} 35... a5 {[%clk 0:00:50.3]} 36. Bd3 {[%clk 0:01:03.4]}
36... b4 {[%clk 0:00:50.3]} 37. Kg1 {[%clk 0:00:57.5]} 37... g5 {[%clk
0:00:42.7]} 38. Qf6+ {[%clk 0:00:49.7]} 38... Qxf6 {[%clk 0:00:42]} 39. Rxf6
{[%clk 0:00:51.6]} 39... Rd8 {[%clk 0:00:43]} 40. Kh2 {[%clk 0:00:38.5]} 40...
Rdd7 {[%clk 0:00:22]} 41. Kg3 {[%clk 0:00:34.4]} 41... Rd8 {[%clk 0:00:22.5]}
42. h4 {[%clk 0:00:32]} 42... gxh4+ {[%clk 0:00:24.4]} 43. Kxh4 {[%clk
0:00:33.9]} 43... Rh8+ {[%clk 0:00:24.8]} 44. Kg3 {[%clk 0:00:35.3]} 44... Rd8
{[%clk 0:00:23.2]} 45. R6f4 {[%clk 0:00:34.7]} 45... Rh8 {[%clk 0:00:21.6]} 46.
Rh4 {[%clk 0:00:35.9]} 46... Rxh4 {[%clk 0:00:22.4]} 47. Kxh4 {[%clk 0:00:37.8]}
47... Re5 {[%clk 0:00:20.2]} 48. Kg3 {[%clk 0:00:36.1]} 48... Bd7 {[%clk
0:00:21.6]} 49. Kf4 {[%clk 0:00:35.8]} 49... Rh5 {[%clk 0:00:22.1]} 50. Kg3
{[%clk 0:00:30.5]} 50... f6 {[%clk 0:00:22.7]} 51. Rf4 {[%clk 0:00:28.1]} 51...
Rg5+ {[%clk 0:00:22]} 52. Kf3 {[%clk 0:00:28.7]} 52... Be8 {[%clk 0:00:22.9]}
53. Rh4 {[%clk 0:00:29.4]} 53... Bg6 {[%clk 0:00:22.6]} 54. g4 {[%clk 0:00:30]}
54... Be8 {[%clk 0:00:19.6]} 55. Kf4 {[%clk 0:00:31.3]} 55... Bd7 {[%clk
0:00:19.8]} 56. Be2 {[%clk 0:00:31]} 56... Rg6 {[%clk 0:00:21.2]} 57. Rh5 {[%clk
0:00:30.7]} 57... Rh6 {[%clk 0:00:21.7]} 58. Bf3 {[%clk 0:00:28.4]} 58... Rg6
{[%clk 0:00:20.3]} 59. Be2 {[%clk 0:00:29.5]} 59... a4 {[%clk 0:00:21.7]} 60.
Bf3 {[%clk 0:00:28.6]} 60... axb3 {[%clk 0:00:21.1]} 61. axb3 {[%clk 0:00:30.5]}
61... Bb5 {[%clk 0:00:22.3]} 62. Bd1 {[%clk 0:00:31.5]} 62... Bd3 {[%clk
0:00:21.7]} 63. Rf5 {[%clk 0:00:26.8]} 63... c4 {[%clk 0:00:16]} 64. bxc4 {[%clk
0:00:27.4]} 64... Bxc4 {[%clk 0:00:17.9]} 65. g5 {[%clk 0:00:26.7]} 65... fxg5+
{[%clk 0:00:18.5]} 66. Rxg5 {[%clk 0:00:28.6]} 66... Rxg5 {[%clk 0:00:19.9]} 67.
Kxg5 {[%clk 0:00:30.5]} 67... b3 {[%clk 0:00:16.6]} 68. Kf5 {[%clk 0:00:31.9]}
68... b2 {[%clk 0:00:16.2]} 69. Bc2 {[%clk 0:00:33.5]} 69... Kf7 {[%clk
0:00:17.6]} 70. e5 {[%clk 0:00:34.8]} 70... Ke7 {[%clk 0:00:19]} 71. exd6+
{[%clk 0:00:34.3]} 71... Kxd6 {[%clk 0:00:20.9]} 72. Ke4 {[%clk 0:00:36]} 72...
Kc5 {[%clk 0:00:21.8]} 73. d6 {[%clk 0:00:37.4]} 73... Bb5 {[%clk 0:00:22.7]}
74. Ke3 {[%clk 0:00:34.9]} 74... Bd7 {[%clk 0:00:21]} 75. Kd2 {[%clk 0:00:35.9]}
75... Kb4 {[%clk 0:00:22.5]} 76. Bb1 {[%clk 0:00:37.4]} 76... Kb3 {[%clk
0:00:23.3]} 77. Kd1 {[%clk 0:00:36.9]} 77... Kc3 {[%clk 0:00:23.9]} 78. Bg6
{[%clk 0:00:36.4]} 78... Ba4+ {[%clk 0:00:24.5]} 79. Ke1 {[%clk 0:00:37.3]}
79... Bc2 {[%clk 0:00:25.1]} 80. Bxc2 {[%clk 0:00:38.6]} 80... Kxc2 {[%clk
0:00:26.2]} 0-1

[Event "*** Titled Tuesday Blitz"]
[Site "Chess.com"]
[Date "2019.02.05"]
[Round "1"]
[White "TheBigBoss04"]
[Black "Vadim_Biliy"]
[Result "1-0"]
[WhiteElo "2537"]
[BlackElo "2149"]
[TimeControl "180+2"]
[EndTime "13:10:57 PST"]
[Termination "TheBigBoss04 won by resignation"]

1. b3 {[%clk 0:02:59.4]} 1... e5 {[%clk 0:02:59]} 2. Bb2 {[%clk 0:03:01.3]} 2...
Nc6 {[%clk 0:02:59.2]} 3. e3 {[%clk 0:03:02]} 3... Nf6 {[%clk 0:02:58.8]} 4. d4
{[%clk 0:02:55.8]} 4... exd4 {[%clk 0:02:55.8]} 5. exd4 {[%clk 0:02:57.7]} 5...
d5 {[%clk 0:02:56.5]} 6. Nf3 {[%clk 0:02:53.9]} 6... Bb4+ {[%clk 0:02:55.7]} 7.
c3 {[%clk 0:02:51.9]} 7... Bd6 {[%clk 0:02:53.9]} 8. Bd3 {[%clk 0:02:50.5]} 8...
Qe7+ {[%clk 0:02:48.5]} 9. Qe2 {[%clk 0:02:47]} 9... Qxe2+ {[%clk 0:02:48.9]}
10. Kxe2 {[%clk 0:02:44.9]} 10... O-O {[%clk 0:02:48.2]} 11. Nbd2 {[%clk
0:02:45.5]} 11... Bg4 {[%clk 0:02:45.5]} 12. Rae1 {[%clk 0:02:41]} 12... a5
{[%clk 0:02:39.5]} 13. h3 {[%clk 0:02:35.4]} 13... Bh5 {[%clk 0:02:37]} 14. Kd1
{[%clk 0:02:29.9]} 14... a4 {[%clk 0:02:35.6]} 15. Kc2 {[%clk 0:02:30.7]} 15...
axb3+ {[%clk 0:02:35.6]} 16. axb3 {[%clk 0:02:31.4]} 16... Bg6 {[%clk
0:02:30.5]} 17. Ne5 {[%clk 0:02:25.5]} 17... Bxd3+ {[%clk 0:02:30]} 18. Nxd3
{[%clk 0:02:20.2]} 18... Rfe8 {[%clk 0:02:21.3]} 19. Rxe8+ {[%clk 0:01:52.8]}
19... Nxe8 {[%clk 0:02:18.1]} 20. c4 {[%clk 0:01:40.7]} 20... Nb4+ {[%clk
0:02:13.3]} 21. Nxb4 {[%clk 0:01:40.4]} 21... Bxb4 {[%clk 0:02:14.2]} 22. cxd5
{[%clk 0:01:24.8]} 22... Ra2 {[%clk 0:02:12.3]} 23. Nc4 {[%clk 0:01:13.7]} 23...
b5 {[%clk 0:02:06.3]} 24. Ne3 {[%clk 0:01:14.1]} 24... Ba3 {[%clk 0:01:58.6]}
25. Rb1 {[%clk 0:01:14.2]} 25... Nd6 {[%clk 0:01:46.7]} 26. f3 {[%clk
0:01:08.7]} 26... g6 {[%clk 0:01:40.5]} 27. Kc1 {[%clk 0:00:57.6]} 27... Bxb2+
{[%clk 0:01:35.2]} 28. Rxb2 {[%clk 0:00:59.5]} 28... Ra1+ {[%clk 0:01:36]} 29.
Kd2 {[%clk 0:00:56.4]} 29... Rg1 {[%clk 0:01:23.8]} 30. Ke2 {[%clk 0:00:42.8]}
30... f5 {[%clk 0:01:21.7]} 31. Kf2 {[%clk 0:00:42.3]} 31... Ra1 {[%clk
0:01:18.2]} 32. Rc2 {[%clk 0:00:42.1]} 32... f4 {[%clk 0:01:13.5]} 33. Ng4
{[%clk 0:00:39.4]} 33... Ra7 {[%clk 0:01:12.8]} 34. Nf6+ {[%clk 0:00:34.2]}
34... Kf7 {[%clk 0:01:09.2]} 35. Nxh7 {[%clk 0:00:32.2]} 35... Nf5 {[%clk
0:01:07.4]} 36. Ng5+ {[%clk 0:00:33.3]} 36... Ke7 {[%clk 0:01:05.4]} 37. Ne6
{[%clk 0:00:32.6]} 37... Kd7 {[%clk 0:01:05.3]} 38. Nxf4 {[%clk 0:00:32.1]}
38... Nxd4 {[%clk 0:01:04.8]} 39. Rd2 {[%clk 0:00:24.4]} 39... Nxb3 {[%clk
0:01:05.4]} 40. Rb2 {[%clk 0:00:25.6]} 40... Nd4 {[%clk 0:01:04.3]} 41. Nxg6
{[%clk 0:00:25.6]} 41... b4 {[%clk 0:01:04]} 42. Rxb4 {[%clk 0:00:23.1]} 42...
Ra2+ {[%clk 0:01:02.1]} 43. Kg3 {[%clk 0:00:23.9]} 43... Nf5+ {[%clk 0:01:01.3]}
44. Kf4 {[%clk 0:00:22.1]} 44... Nd6 {[%clk 0:00:52.8]} 45. g4 {[%clk 0:00:22]}
45... Rd2 {[%clk 0:00:53.2]} 46. Ne5+ {[%clk 0:00:20.6]} 46... Kc8 {[%clk
0:00:49.6]} 47. Nc6 {[%clk 0:00:21]} 47... Kd7 {[%clk 0:00:45.3]} 48. Rd4 {[%clk
0:00:20.7]} 48... Rh2 {[%clk 0:00:44]} 49. Kg3 {[%clk 0:00:20.4]} 49... Rh1
{[%clk 0:00:44.9]} 50. h4 {[%clk 0:00:21.1]} 50... Nb5 {[%clk 0:00:42.1]} 51.
Rd2 {[%clk 0:00:19.8]} 51... Nc3 {[%clk 0:00:40]} 52. h5 {[%clk 0:00:19.5]}
52... Kd6 {[%clk 0:00:38.8]} 53. Nd4 {[%clk 0:00:14.9]} 53... Nxd5 {[%clk
0:00:35.3]} 54. Nb5+ {[%clk 0:00:16.1]} 54... Kc5 {[%clk 0:00:33]} 55. Nd4
{[%clk 0:00:11.9]} 55... Ne3 {[%clk 0:00:32]} 56. Ne6+ {[%clk 0:00:12]} 56...
Kb6 {[%clk 0:00:30.5]} 57. Rd3 {[%clk 0:00:10.8]} 57... Nc4 {[%clk 0:00:22]} 58.
Nxc7 {[%clk 0:00:10]} 58... Ne5 {[%clk 0:00:18.5]} 59. Rc3 {[%clk 0:00:08.4]}
59... Rg1+ {[%clk 0:00:15.5]} 60. Kf4 {[%clk 0:00:09]} 60... Nc6 {[%clk
0:00:13.8]} 61. Nd5+ {[%clk 0:00:09.8]} 61... Kb5 {[%clk 0:00:14.8]} 62. h6
{[%clk 0:00:11.2]} 62... Rh1 {[%clk 0:00:14.1]} 63. Kg5 {[%clk 0:00:12]} 63...
Nd4 {[%clk 0:00:15]} 64. Nc7+ {[%clk 0:00:11.1]} 64... Kb4 {[%clk 0:00:14.4]}
65. Re3 {[%clk 0:00:11.8]} 65... Kc5 {[%clk 0:00:11.1]} 66. Ne6+ {[%clk
0:00:12.7]} 66... Nxe6+ {[%clk 0:00:11.1]} 67. Rxe6 {[%clk 0:00:14.6]} 67... Kd5
{[%clk 0:00:12.3]} 68. Rf6 {[%clk 0:00:14.6]} 68... Ke5 {[%clk 0:00:12.9]} 69.
Rf5+ {[%clk 0:00:15.8]} 69... Ke6 {[%clk 0:00:13.5]} 70. Kg6 {[%clk 0:00:17.4]}
70... Rh3 {[%clk 0:00:12.6]} 71. h7 {[%clk 0:00:18.3]} 71... Rh4 {[%clk
0:00:12.5]} 72. Rh5 {[%clk 0:00:18.5]} 1-0

[Event "*** Titled Tuesday Blitz"]
[Site "Chess.com"]
[Date "2019.02.05"]
[Round "1"]
[White "AndrBaryshpolets"]
[Black "INLOVEWITHF"]
[Result "1/2-1/2"]
[WhiteElo "2612"]
[BlackElo "2274"]
[TimeControl "180+2"]
[EndTime "13:11:26 PST"]
[Termination "Game drawn by agreement"]

1. d4 {[%clk 0:03:01.9]} 1... Nf6 {[%clk 0:03:00]} 2. c4 {[%clk 0:03:03.6]} 2...
g6 {[%clk 0:03:00.9]} 3. Nc3 {[%clk 0:03:04.3]} 3... Bg7 {[%clk 0:03:02.4]} 4.
e4 {[%clk 0:03:05]} 4... d6 {[%clk 0:03:03.5]} 5. Nf3 {[%clk 0:03:06.6]} 5...
O-O {[%clk 0:03:04.2]} 6. Be2 {[%clk 0:03:08.3]} 6... e5 {[%clk 0:03:05.1]} 7.
O-O {[%clk 0:03:09.5]} 7... Nc6 {[%clk 0:03:05.8]} 8. d5 {[%clk 0:03:10.9]} 8...
Ne7 {[%clk 0:03:06.8]} 9. b4 {[%clk 0:03:12.6]} 9... Nh5 {[%clk 0:03:02.9]} 10.
g3 {[%clk 0:03:12.7]} 10... f5 {[%clk 0:02:58.2]} 11. Ng5 {[%clk 0:03:13.6]}
11... Nf6 {[%clk 0:02:54.7]} 12. Bf3 {[%clk 0:03:13.3]} 12... fxe4 {[%clk
0:02:26.9]} 13. Ncxe4 {[%clk 0:02:57.5]} 13... Bf5 {[%clk 0:02:18.8]} 14. Bg2
{[%clk 0:02:15.1]} 14... Nxe4 {[%clk 0:02:13.5]} 15. Nxe4 {[%clk 0:02:14.3]}
15... Qd7 {[%clk 0:02:13.2]} 16. Re1 {[%clk 0:02:06.6]} 16... h6 {[%clk
0:02:12.3]} 17. c5 {[%clk 0:02:02.7]} 17... a5 {[%clk 0:02:04.1]} 18. Ba3 {[%clk
0:01:55.8]} 18... axb4 {[%clk 0:01:58.5]} 19. Bxb4 {[%clk 0:01:57.7]} 19... Bxe4
{[%clk 0:01:49.6]} 20. Bxe4 {[%clk 0:01:33.5]} 20... Nf5 {[%clk 0:01:42.3]} 21.
cxd6 {[%clk 0:01:13.9]} 21... cxd6 {[%clk 0:01:39.8]} 22. a4 {[%clk 0:01:15.5]}
22... Nd4 {[%clk 0:01:37.4]} 23. Bc3 {[%clk 0:00:51.4]} 23... Qf7 {[%clk
0:01:19.5]} 24. Bxd4 {[%clk 0:00:46.5]} 24... exd4 {[%clk 0:01:19.4]} 25. f4
{[%clk 0:00:46.8]} 25... g5 {[%clk 0:01:18.6]} 26. Rf1 {[%clk 0:00:33.7]} 26...
Qe7 {[%clk 0:01:05.8]} 27. Qd3 {[%clk 0:00:27.9]} 27... gxf4 {[%clk 0:01:03.2]}
28. gxf4 {[%clk 0:00:20.5]} 28... Rae8 {[%clk 0:01:03.1]} 29. Rae1 {[%clk
0:00:18.1]} 29... Qh4 {[%clk 0:00:54]} 30. Bh7+ {[%clk 0:00:18.9]} 30... Kh8
{[%clk 0:00:54.8]} 31. Rxe8 {[%clk 0:00:20.6]} 31... Rxe8 {[%clk 0:00:55.8]} 32.
Bf5 {[%clk 0:00:21.2]} 32... Re1 {[%clk 0:00:46]} 33. Rxe1 {[%clk 0:00:15.9]}
33... Qxe1+ {[%clk 0:00:47.9]} 34. Kg2 {[%clk 0:00:17.5]} 34... Qe3 {[%clk
0:00:40.3]} 35. Qc2 {[%clk 0:00:16.5]} 35... Qc3 {[%clk 0:00:34.9]} 36. Qe2
{[%clk 0:00:12.6]} 36... Qe3 {[%clk 0:00:34.2]} 37. Qc2 {[%clk 0:00:13.5]} 37...
Qc3 {[%clk 0:00:35.1]} 38. Qe2 {[%clk 0:00:13.3]} 38... Qe3 {[%clk 0:00:35.6]}
39. Qh5 {[%clk 0:00:14.6]} 39... Qd2+ {[%clk 0:00:31.8]} 40. Kg3 {[%clk
0:00:15.8]} 40... Qe3+ {[%clk 0:00:32.2]} 41. Qf3 {[%clk 0:00:16.8]} 41... Qg1+
{[%clk 0:00:29.4]} 42. Kh3 {[%clk 0:00:17.5]} 42... Qe3 {[%clk 0:00:28]} 43. Kg2
{[%clk 0:00:17.4]} 43... Qxf3+ {[%clk 0:00:24.5]} 44. Kxf3 {[%clk 0:00:19.3]}
44... Bf6 {[%clk 0:00:24.5]} 45. Ke4 {[%clk 0:00:20]} 45... Kg7 {[%clk
0:00:23.1]} 46. Bc8 {[%clk 0:00:11.3]} 46... b6 {[%clk 0:00:23.3]} 47. Kd3
{[%clk 0:00:13]} 47... Kf7 {[%clk 0:00:23.5]} 48. Kc4 {[%clk 0:00:14]} 48... Ke7
{[%clk 0:00:24.7]} 49. Bf5 {[%clk 0:00:13.4]} 49... Kd8 {[%clk 0:00:25.5]} 50.
Kd3 {[%clk 0:00:13.5]} 50... Ke7 {[%clk 0:00:24.7]} 51. Bg4 {[%clk 0:00:14.3]}
51... Bg7 {[%clk 0:00:24.6]} 52. Be2 {[%clk 0:00:14.2]} 52... Bf6 {[%clk
0:00:25.4]} 53. Ke4 {[%clk 0:00:15.5]} 53... Kf7 {[%clk 0:00:23.5]} 54. Kf5
{[%clk 0:00:16.7]} 54... Bg7 {[%clk 0:00:18]} 55. Bh5+ {[%clk 0:00:17]} 55...
Ke7 {[%clk 0:00:19.3]} 56. Kg6 {[%clk 0:00:18.4]} 56... Bf6 {[%clk 0:00:12.1]}
57. Be2 {[%clk 0:00:16.5]} 57... Bh4 {[%clk 0:00:08.5]} 58. Kxh6 {[%clk
0:00:17.4]} 58... Bf2 {[%clk 0:00:09.4]} 59. Kg5 {[%clk 0:00:17.5]} 59... Be3
{[%clk 0:00:09.7]} 60. h4 {[%clk 0:00:18.1]} 60... Kf7 {[%clk 0:00:10.5]} 61. h5
{[%clk 0:00:19.1]} 61... Kg7 {[%clk 0:00:10.1]} 62. Bd3 {[%clk 0:00:18.9]} 62...
Bd2 {[%clk 0:00:09.2]} 63. h6+ {[%clk 0:00:20.3]} 63... Kh8 {[%clk 0:00:09.9]}
64. Kf5 {[%clk 0:00:19.3]} 64... Be3 {[%clk 0:00:10.2]} 65. Kg5 {[%clk
0:00:17.2]} 65... Bd2 {[%clk 0:00:10.8]} 66. h7 {[%clk 0:00:14]} 66... Kg7
{[%clk 0:00:10.3]} 67. Kf5 {[%clk 0:00:12.4]} 67... Bc1 {[%clk 0:00:10.9]} 68.
Ke4 {[%clk 0:00:11.5]} 68... Bd2 {[%clk 0:00:11.6]} 69. Kf3 {[%clk 0:00:11.1]}
69... Bc1 {[%clk 0:00:11.3]} 70. Ke4 {[%clk 0:00:12.5]} 70... Be3 {[%clk
0:00:11.7]} 71. f5 {[%clk 0:00:13.5]} 71... Kxh7 {[%clk 0:00:12.3]} 72. Kf3
{[%clk 0:00:10.1]} 72... Kg7 {[%clk 0:00:13.3]} 73. Ke2 {[%clk 0:00:11.3]} 73...
Kf6 {[%clk 0:00:15.2]} 74. Be4 {[%clk 0:00:08.6]} 74... Ke5 {[%clk 0:00:15.4]}
75. Kd3 {[%clk 0:00:10.2]} 75... Bg5 {[%clk 0:00:14]} 76. Bf3 {[%clk 0:00:09.9]}
76... Kxf5 {[%clk 0:00:14.7]} 77. Kxd4 {[%clk 0:00:11.5]} 77... Kf4 {[%clk
0:00:14.8]} 78. Be4 {[%clk 0:00:12.4]} 78... Bf6+ {[%clk 0:00:12.3]} 79. Kd3
{[%clk 0:00:13.9]} 79... Ke5 {[%clk 0:00:13]} 80. Bf3 {[%clk 0:00:14.9]} 80...
Bd8 {[%clk 0:00:12.4]} 81. Be4 {[%clk 0:00:16.5]} 1/2-1/2

[Event "*** Titled Tuesday Blitz"]
[Site "Chess.com"]
[Date "2019.02.05"]
[Round "1"]
[White "HElissalt"]
[Black "RojonR"]
[Result "1/2-1/2"]
[WhiteElo "2063"]
[BlackElo "2490"]
[TimeControl "180+2"]
[EndTime "13:11:29 PST"]
[Termination "Game drawn - insufficient material"]

1. d4 {[%clk 0:02:58.7]} 1... Nf6 {[%clk 0:03:00.6]} 2. c4 {[%clk 0:02:59]} 2...
e6 {[%clk 0:03:01.6]} 3. Nc3 {[%clk 0:02:59.9]} 3... Bb4 {[%clk 0:03:02]} 4. e3
{[%clk 0:03:01.1]} 4... c5 {[%clk 0:03:02.4]} 5. Ne2 {[%clk 0:03:02]} 5... O-O
{[%clk 0:03:00.2]} 6. a3 {[%clk 0:03:02.3]} 6... cxd4 {[%clk 0:02:56.6]} 7. exd4
{[%clk 0:03:02.5]} 7... Be7 {[%clk 0:02:57.4]} 8. g3 {[%clk 0:03:03.2]} 8... d5
{[%clk 0:02:57.1]} 9. c5 {[%clk 0:03:03.6]} 9... b6 {[%clk 0:02:42.7]} 10. cxb6
{[%clk 0:02:53.1]} 10... axb6 {[%clk 0:02:41.2]} 11. Bg2 {[%clk 0:02:53.2]}
11... Nc6 {[%clk 0:02:38.6]} 12. O-O {[%clk 0:02:53.9]} 12... Na5 {[%clk
0:02:32.5]} 13. b3 {[%clk 0:02:48.8]} 13... Ba6 {[%clk 0:02:28]} 14. Re1 {[%clk
0:02:48.9]} 14... Rc8 {[%clk 0:02:27.4]} 15. Bd2 {[%clk 0:02:45.9]} 15... Qd7
{[%clk 0:02:24.9]} 16. Qb1 {[%clk 0:02:38.8]} 16... Rc7 {[%clk 0:02:18]} 17. Qb2
{[%clk 0:02:37.2]} 17... Rfc8 {[%clk 0:02:17.1]} 18. Rec1 {[%clk 0:02:37.4]}
18... Bd3 {[%clk 0:02:16.9]} 19. Bf3 {[%clk 0:02:35.2]} 19... h6 {[%clk
0:02:13.1]} 20. h3 {[%clk 0:02:35.3]} 20... Ne4 {[%clk 0:02:05.3]} 21. Be3
{[%clk 0:02:22.5]} 21... g5 {[%clk 0:01:44.8]} 22. Kg2 {[%clk 0:01:47.8]} 22...
Kg7 {[%clk 0:01:45.4]} 23. Bxe4 {[%clk 0:01:40.6]} 23... dxe4 {[%clk 0:01:39.8]}
24. d5 {[%clk 0:01:40.9]} 24... Bf6 {[%clk 0:01:39]} 25. Bd4 {[%clk 0:01:41.3]}
25... e5 {[%clk 0:01:39.6]} 26. Bxb6 {[%clk 0:01:39.6]} 26... Qf5 {[%clk
0:01:11.3]} 27. Ng1 {[%clk 0:01:23.4]} 27... Nb7 {[%clk 0:00:54.1]} 28. Bxc7
{[%clk 0:01:23.4]} 28... Rxc7 {[%clk 0:00:56]} 29. Nd1 {[%clk 0:01:23.9]} 29...
Rxc1 {[%clk 0:00:43.2]} 30. Rxc1 {[%clk 0:01:24.1]} 30... e3 {[%clk 0:00:31.4]}
31. Nxe3 {[%clk 0:01:24.8]} 31... Qe4+ {[%clk 0:00:31.6]} 32. Kh2 {[%clk
0:01:25.4]} 32... Nd6 {[%clk 0:00:30.4]} 33. Qd2 {[%clk 0:01:21]} 33... Nb5
{[%clk 0:00:25.1]} 34. f3 {[%clk 0:01:20.6]} 34... Qh7 {[%clk 0:00:24]} 35. a4
{[%clk 0:01:05]} 35... Nd4 {[%clk 0:00:24.4]} 36. Rc3 {[%clk 0:01:01.9]} 36...
e4 {[%clk 0:00:24.9]} 37. Rxd3 {[%clk 0:00:55.5]} 37... exd3 {[%clk 0:00:25.6]}
38. d6 {[%clk 0:00:56]} 38... Nxb3 {[%clk 0:00:23.9]} 39. Qb4 {[%clk 0:00:56.5]}
39... Nd4 {[%clk 0:00:10.7]} 40. d7 {[%clk 0:00:56.6]} 40... Ne6 {[%clk
0:00:10.8]} 41. Qb5 {[%clk 0:00:48.8]} 41... d2 {[%clk 0:00:11.4]} 42. Qd5
{[%clk 0:00:45.1]} 42... Qb1 {[%clk 0:00:04.2]} 43. Qxd2 {[%clk 0:00:42.6]}
43... Qa1 {[%clk 0:00:04.4]} 44. a5 {[%clk 0:00:42.1]} 44... Qa4 {[%clk
0:00:04.6]} 45. Ne2 {[%clk 0:00:40.5]} 45... Bd8 {[%clk 0:00:05.6]} 46. Nf5+
{[%clk 0:00:39.8]} 46... Kg6 {[%clk 0:00:06.5]} 47. Qd3 {[%clk 0:00:39.4]} 47...
Qxa5 {[%clk 0:00:06.4]} 48. Nd6+ {[%clk 0:00:31.6]} 48... Kg7 {[%clk 0:00:06.7]}
49. Nb7 {[%clk 0:00:32.2]} 49... Qc7 {[%clk 0:00:07.5]} 50. Nxd8 {[%clk
0:00:33.1]} 50... Nxd8 {[%clk 0:00:07.2]} 51. Qd4+ {[%clk 0:00:33.6]} 51... Kg8
{[%clk 0:00:06.8]} 52. Kg2 {[%clk 0:00:32.5]} 52... Ne6 {[%clk 0:00:07.8]} 53.
Qd3 {[%clk 0:00:33]} 53... Kf8 {[%clk 0:00:08.7]} 54. Kf2 {[%clk 0:00:32]} 54...
Ke7 {[%clk 0:00:09.4]} 55. Nc3 {[%clk 0:00:25]} 55... Qxd7 {[%clk 0:00:08]} 56.
Nd5+ {[%clk 0:00:25.1]} 56... Kf8 {[%clk 0:00:08.7]} 57. h4 {[%clk 0:00:24.6]}
57... Qa7+ {[%clk 0:00:08.9]} 58. Kg2 {[%clk 0:00:24.1]} 58... Qa2+ {[%clk
0:00:09.2]} 59. Kh3 {[%clk 0:00:24.5]} 59... Qa1 {[%clk 0:00:09.7]} 60. Kg2
{[%clk 0:00:21.2]} 60... Qb2+ {[%clk 0:00:09.9]} 61. Kh3 {[%clk 0:00:21.2]}
61... Qe5 {[%clk 0:00:10.7]} 62. Kg2 {[%clk 0:00:21.5]} 62... h5 {[%clk
0:00:10.5]} 63. hxg5 {[%clk 0:00:21.7]} 63... Qxg5 {[%clk 0:00:11.4]} 64. Qe4
{[%clk 0:00:16.3]} 64... h4 {[%clk 0:00:10]} 65. Qb4+ {[%clk 0:00:07.5]} 65...
Kg7 {[%clk 0:00:04.3]} 66. Qc3+ {[%clk 0:00:08.2]} 66... Kg6 {[%clk 0:00:04]}
67. Qd3+ {[%clk 0:00:08]} 67... Kh6 {[%clk 0:00:05.3]} 68. f4 {[%clk 0:00:06.8]}
68... Qg4 {[%clk 0:00:04.5]} 69. Nf6 {[%clk 0:00:04.8]} 69... Qxg3+ {[%clk
0:00:04]} 70. Qxg3 {[%clk 0:00:05]} 70... hxg3 {[%clk 0:00:05.9]} 71. Kxg3
{[%clk 0:00:06]} 71... Kg6 {[%clk 0:00:07.8]} 72. Ne4 {[%clk 0:00:04.9]} 72...
Kf5 {[%clk 0:00:08.6]} 73. Nd6+ {[%clk 0:00:05.5]} 73... Kf6 {[%clk 0:00:10]}
74. Nxf7 {[%clk 0:00:06.5]} 74... Kxf7 {[%clk 0:00:11.2]} 75. f5 {[%clk
0:00:07]} 75... Ng7 {[%clk 0:00:12.3]} 76. f6 {[%clk 0:00:08.2]} 76... Kxf6
{[%clk 0:00:12.9]} 1/2-1/2